[Event "4NCL Div 1 2018-19"]
[Site "Telford"]
[Date "2019.02.10"]
[Round "6.29"]
[White "Moreby, James"]
[Black "Berry, Neil"]
[Result "1/2-1/2"]
[ECO "D37"]
[WhiteElo "2252"]
[BlackElo "2274"]
[Annotator "NA"]
[PlyCount "79"]
[EventDate "2018.11.10"]
[EventType "team-tourn"]
[EventCountry "GBR"]
[SourceTitle "playchess.com"]
[Source "ChessBase"]
[SourceQuality "1"]
[TimeControl "40/6000+30:3000+30"]

1. Nf3 {[%emt 0:00:19]} d5 {[%emt 0:02:46]} 2. d4 {[%emt 0:01:03]} Nf6 {[%emt 0:00:10]} 3. c4 {[%emt 0:00:04]} e6 {[%emt 0:02:25]} 4. Nc3 {[%emt 0:00:05]} Be7 {[%emt 0:00:34]} 5. Bf4 {[%emt 0:01:37]} O-O {[%emt 0:01:01]} 6. Rc1 {[%emt 0:01:06]} b6 {[%emt 0:12:40]} 7. cxd5 {[%emt 0:00:17]} Nxd5 {[%emt 0:02:20]} 8. Bd2 {[%emt 0:04:07]} Bb7 {[%emt 0:02:52]} 9. e3 {[%emt 0:00:15]} Nd7 {[%emt 0:02:43]} 10. Bd3 {[%emt 0:00:51]} c5 {[%emt 0:06:56]} 11. O-O {[%emt 0:03:50]} N7f6 {[%emt 0:08:24]} 12. a3 {[%emt 0:02:52]} cxd4 {[%emt 0:06:41]} 13. exd4 {[%emt 0:03:56]} Nxc3 {[%emt 0:00:35]} 14. Bxc3 {[%emt 0:00:33]} Rc8 {[%emt 0:03:46]} 15. Re1 {[%emt 0:10:31]} Nd5 {[%emt 0:16:17]} 16. Bd2 {[%emt 0:09:40]} Rxc1 {[%emt 0:02:04]} 17. Qxc1 {[%emt 0:04:23]} Nf6 {[%emt 0:01:10]} 18. Be3 {[%emt 0:04:23]} Bxf3 {[%emt 0:02:26]} 19. gxf3 {[%emt 0:00:02]} Nd5 {[%emt 0:08:05]} 20. Qd2 {[%emt 0:02:14]} Bd6 {[%emt 0:02:32]} 21. Kg2 {[%emt 0:08:34]} Qh4 {[%emt 0:01:48]} 22. h3 {[%emt 0:00:01]} Bf4 {[%emt 0:03:54]} 23. Be4 {[%emt 0:02:44]} Nxe3+ {[%emt 0:06:29]} 24. fxe3 {[%emt 0:00:23]} Qg3+ {[%emt 0:00:03]} 25. Kf1 {[%emt 0:00:09]} Qxh3+ {[%emt 0:00:44]} 26. Qg2 {[%emt 0:00:03]} Qxg2+ {[%emt 0:00:08]} 27. Kxg2 {[%emt 0:00:02]} Bd6 {[%emt 0:00:10]} 28. Rc1 {[%emt 0:00:57]} f5 {[%emt 0:02:21]} 29. Bd3 {[%emt 0:00:13]} Kf7 {[%emt 0:01:32]} 30. Rc6 {[%emt 0:15:21]} Ke7 {[%emt 0:00:49]} 31. e4 {[%emt 0:00:09]} fxe4 {[%emt 0:01:32]} 32. fxe4 {[%emt 0:01:04]} e5 {[%emt 0:01:12]} 33. d5 {[%emt 0:06:19]} g5 {[%emt 0:03:51]} 34. Rc1 {[%emt 0:03:24]} Bc5 {[%emt 0:01:57]} 35. b4 {[%emt 0:01:34]} Bd6 {[%emt 0:00:51]} 36. Rh1 {[%emt 0:00:33]} Rf7 {[%emt 0:00:50]} 37. Rh5 {[%emt 0:00:09]} a5 {[%emt 0:01:32]} 38. Rxg5 {[%emt 0:01:08]} axb4 {[%emt 0:00:15]} 39. axb4 {[%emt 0:00:06]} Kf6 {[%emt 0:00:48]} 40. Rf5+ {[%emt 0:00:53]} 1/2-1/2

[Event "4NCL Div 1 2018-19"]
[Site "Telford"]
[Date "2019.02.10"]
[Round "6.30"]
[White "Findlay, David John"]
[Black "Dunn, Andrew"]
[Result "1/2-1/2"]
[ECO "B13"]
[WhiteElo "2183"]
[BlackElo "2155"]
[Annotator "NA"]
[PlyCount "39"]
[EventDate "2018.11.10"]
[EventType "team-tourn"]
[EventCountry "GBR"]
[SourceTitle "playchess.com"]
[Source "ChessBase"]
[SourceQuality "1"]
[TimeControl "40/6000+30:3000+30"]

1. e4 {[%emt 0:00:00]} c6 {[%emt 0:04:27]} 2. d4 {[%emt 0:00:00]} d5 {[%emt 0:00:18]} 3. exd5 {[%emt 0:00:14]} cxd5 {[%emt 0:00:06]} 4. c4 {[%emt 0:00:18]} Nf6 {[%emt 0:00:07]} 5. Nc3 {[%emt 0:00:18]} Nc6 {[%emt 0:00:12]} 6. Bg5 {[%emt 0:00:29]} Be6 {[%emt 0:06:23]} 7. a3 {[%emt 0:02:21]} g6 {[%emt 0:07:39]} 8. Be2 {[%emt 0:01:33]} Bg7 {[%emt 0:04:35]} 9. Bf3 {[%emt 0:02:45]} Na5 {[%emt 0:34:36]} 10. Bxf6 {[%emt 0:07:38]} Bxf6 {[%emt 0:01:36]} 11. cxd5 {[%emt 0:00:26]} Bd7 {[%emt 0:04:51]} 12. Nge2 {[%emt 0:01:53]} Nc4 {[%emt 0:03:01]} 13. Qb3 {[%emt 0:07:32]} Nd6 {[%emt 0:03:33]} 14. O-O {[%emt 0:10:32]} O-O {[%emt 0:09:59]} 15. Ne4 {[%emt 0:06:16]} Nxe4 {[%emt 0:00:32]} 16. Bxe4 {[%emt 0:00:17]} Qc7 {[%emt 0:07:38]} 17. Rac1 {[%emt 0:07:22]} Qd6 {[%emt 0:00:25]} 18. Rc4 {[%emt 0:02:46]} b5 {[%emt 0:03:20]} 19. Rc3 {[%emt 0:04:18]} a5 {[%emt 0:03:17]} 20. Rcc1 {[%emt 0:14:28]} 1/2-1/2

[Event "4NCL Div 1 2018-19"]
[Site "Telford"]
[Date "2019.02.10"]
[Round "6.30"]
[White "Maciol, Ryszard"]
[Black "Dong, Bao Nghia"]
[Result "1/2-1/2"]
[ECO "A65"]
[WhiteElo "2120"]
[BlackElo "2144"]
[Annotator "NA"]
[PlyCount "122"]
[EventDate "2018.11.10"]
[EventType "team-tourn"]
[EventCountry "GBR"]
[SourceTitle "playchess.com"]
[Source "ChessBase"]
[SourceQuality "1"]
[TimeControl "40/6000+30:3000+30"]

1. d4 {[%emt 0:02:39]} e6 {[%emt 0:00:45]} 2. c4 {[%emt 0:00:10]} c5 {[%emt 0:02:26]} 3. d5 {[%emt 0:03:01]} Nf6 {[%emt 0:00:06]} 4. Nc3 {[%emt 0:00:14]} exd5 {[%emt 0:00:05]} 5. cxd5 {[%emt 0:00:03]} d6 {[%emt 0:00:05]} 6. e4 {[%emt 0:00:28]} g6 {[%emt 0:00:03]} 7. f3 {[%emt 0:00:27]} Bg7 {[%emt 0:01:05]} 8. Bg5 {[%emt 0:00:18]} O-O {[%emt 0:00:12]} 9. Qd2 {[%emt 0:00:26]} Re8 {[%emt 0:00:19]} 10. Nge2 {[%emt 0:00:29]} a6 {[%emt 0:01:45]} 11. a4 {[%emt 0:12:36]} Qa5 {[%emt 0:00:11]} 12. Ra3 {[%emt 0:00:20]} Nfd7 {[%emt 0:07:29]} 13. Ng3 {[%emt 0:07:19]} f5 {[%emt 0:04:52]} 14. Be2 {[%emt 0:02:13]} Qb4 {[%emt 0:02:45]} 15. O-O {[%emt 0:05:30]} Qd4+ {[%emt 0:00:32]} 16. Kh1 {[%emt 0:02:22]} Qxd2 {[%emt 0:00:40]} 17. Bxd2 {[%emt 0:00:04]} Ne5 {[%emt 0:01:55]} 18. f4 {[%emt 0:11:44]} Nf7 {[%emt 0:00:14]} 19. exf5 {[%emt 0:04:25]} Bxf5 {[%emt 0:00:12]} 20. Nxf5 {[%emt 0:04:51]} gxf5 {[%emt 0:00:04]} 21. Bd3 {[%emt 0:01:21]} Nd7 {[%emt 0:02:54]} 22. Rb3 {[%emt 0:04:03]} c4 {[%emt 0:01:26]} 23. Bxc4 {[%emt 0:00:05]} Nc5 {[%emt 0:00:03]} 24. Rb6 {[%emt 0:07:09]} Rac8 {[%emt 0:01:21]} 25. Ba2 {[%emt 0:00:44]} Bxc3 {[%emt 0:05:01]} 26. Bxc3 {[%emt 0:01:37]} Nxa4 {[%emt 0:00:04]} 27. Rxb7 {[%emt 0:00:28]} Nxc3 {[%emt 0:00:08]} 28. bxc3 {[%emt 0:00:01]} Rxc3 {[%emt 0:00:07]} 29. Bb1 {[%emt 0:01:06]} Rc5 {[%emt 0:07:37]} 30. h3 {[%emt 0:06:43]} Nh6 {[%emt 0:05:10]} 31. Rd7 {[%emt 0:02:11]} Nf7 {[%emt 0:09:00]} 32. Bxf5 {[%emt 0:08:56]} Rxd5 {[%emt 0:02:03]} 33. Bc2 {[%emt 0:02:51]} Re3 {[%emt 0:03:21]} 34. Rb1 {[%emt 0:04:50]} Rb5 {[%emt 0:07:02]} 35. Rxb5 {[%emt 0:02:07]} axb5 {[%emt 0:00:02]} 36. Rb7 {[%emt 0:00:19]} Kg7 {[%emt 0:12:06]} 37. Rxb5 {[%emt 0:01:13]} Rc3 {[%emt 0:02:46]} 38. Bb3 {[%emt 0:01:43]} Nd8 {[%emt 0:01:04]} 39. Kh2 {[%emt 0:01:51]} Nc6 {[%emt 0:00:26]} 40. Bd5 {[%emt 0:01:57]} Ne7 {[%emt 0:00:12]} 41. Bb3 {[%emt 0:09:16]} Kf6 {[%emt 0:00:54]} 42. g4 {[%emt 0:04:44]} h6 {[%emt 0:00:39]} 43. Rb6 {[%emt 0:01:45]} Rd3 {[%emt 0:00:40]} 44. Bc4 {[%emt 0:04:49]} Rd4 {[%emt 0:00:15]} 45. Ba6 {[%emt 0:00:41]} Ng6 {[%emt 0:00:24]} 46. f5 {[%emt 0:00:38]} Ne5 {[%emt 0:00:34]} 47. Kg3 {[%emt 0:01:57]} h5 {[%emt 0:00:19]} 48. gxh5 {[%emt 0:05:42]} Kxf5 {[%emt 0:04:30]} 49. Rb8 {[%emt 0:00:41]} Ra4 {[%emt 0:00:35]} 50. Be2 {[%emt 0:02:41]} Ra3+ {[%emt 0:00:12]} 51. Kh4 {[%emt 0:00:59]} Ra4+ {[%emt 0:02:21]} 52. Kg3 {[%emt 0:01:06]} d5 {[%emt 0:00:26]} 53. Rf8+ {[%emt 0:02:07]} Kg5 {[%emt 0:00:12]} 54. h4+ {[%emt 0:02:40]} Kh6 {[%emt 0:00:11]} 55. Rf6+ {[%emt 0:00:15]} Kg7 {[%emt 0:00:16]} 56. Rd6 {[%emt 0:01:33]} Re4 {[%emt 0:00:27]} 57. h6+ {[%emt 0:01:51]} Kh7 {[%emt 0:01:33]} 58. Bd1 {[%emt 0:00:08]} d4 {[%emt 0:03:13]} 59. Bc2 {[%emt 0:02:16]} d3 {[%emt 0:00:05]} 60. Bxd3 {[%emt 0:00:27]} Nxd3 {[%emt 0:00:08]} 61. Rxd3 {[%emt 0:00:02]} Kxh6 {[%emt 0:00:09]} 1/2-1/2

[Event "4NCL Div 1 2018-19"]
[Site "Telford"]
[Date "2019.02.10"]
[Round "6.31"]
[White "Bremner, Adam"]
[Black "Quinn, John M"]
[Result "0-1"]
[ECO "E99"]
[WhiteElo "2210"]
[BlackElo "2163"]
[Annotator "NA"]
[PlyCount "78"]
[EventDate "2018.11.10"]
[EventType "team-tourn"]
[EventCountry "GBR"]
[SourceTitle "playchess.com"]
[Source "ChessBase"]
[SourceQuality "1"]
[TimeControl "40/6000+30:3000+30"]

1. d4 {[%emt 0:00:00]} Nf6 {[%emt 0:00:00]} 2. c4 {[%emt 0:00:00]} g6 {[%emt 0:00:00]} 3. Nc3 {[%emt 0:00:00]} Bg7 {[%emt 0:00:00]} 4. e4 {[%emt 0:00:00]} d6 {[%emt 0:00:00]} 5. Nf3 {[%emt 0:00:00]} O-O {[%emt 0:00:00]} 6. Be2 {[%emt 0:00:01]} e5 {[%emt 0:00:16]} 7. O-O {[%emt 0:00:07]} Nc6 {[%emt 0:00:05]} 8. d5 {[%emt 0:00:05]} Ne7 {[%emt 0:00:05]} 9. Ne1 {[%emt 0:00:06]} Nd7 {[%emt 0:00:58]} 10. Nd3 {[%emt 0:00:07]} f5 {[%emt 0:08:48]} 11. Bd2 {[%emt 0:00:12]} Nf6 {[%emt 0:08:52]} 12. f3 {[%emt 0:00:17]} b6 {[%emt 0:08:47]} 13. b4 {[%emt 0:04:17]} a5 {[%emt 0:14:11]} 14. a3 {[%emt 0:12:48]} f4 {[%emt 0:07:30]} 15. c5 {[%emt 0:10:46]} g5 {[%emt 0:03:41]} 16. cxb6 {[%emt 0:03:23]} cxb6 {[%emt 0:00:10]} 17. Nf2 {[%emt 0:06:33]} h5 {[%emt 0:04:09]} 18. h3 {[%emt 0:04:37]} Kh8 {[%emt 0:08:01]} 19. Nb5 {[%emt 0:02:32]} Rf7 {[%emt 0:04:00]} 20. Rc1 {[%emt 0:00:16]} Ne8 {[%emt 0:06:50]} 21. Qc2 {[%emt 0:05:58]} Ng8 {[%emt 0:04:41]} 22. Qd1 {[%emt 0:09:01]} Bd7 {[%emt 0:06:31]} 23. Rc2 {[%emt 0:04:40]} Nh6 {[%emt 0:01:07]} 24. a4 {[%emt 0:10:48]} Bf8 {[%emt 0:01:25]} 25. Rc4 {[%emt 0:06:56]} Rg7 {[%emt 0:02:01]} 26. Bc1 {[%emt 0:03:20]} g4 {[%emt 0:04:59]} 27. fxg4 {[%emt 0:00:47]} hxg4 {[%emt 0:00:05]} 28. Bxg4 {[%emt 0:01:47]} Nxg4 {[%emt 0:01:22]} 29. Nxg4 {[%emt 0:00:06]} Bxg4 {[%emt 0:01:41]} 30. hxg4 {[%emt 0:00:06]} Qh4 {[%emt 0:02:12]} 31. bxa5 {[%emt 0:04:54]} bxa5 {[%emt 0:01:47]} 32. Rc3 {[%emt 0:03:01]} Rxg4 {[%emt 0:01:01]} 33. Rff3 {[%emt 0:00:40]} Qg5 {[%emt 0:02:28]} 34. Qc2 {[%emt 0:02:21]} Be7 {[%emt 0:01:49]} 35. Kf1 {[%emt 0:00:26]} Kg7 {[%emt 0:03:26]} 36. Rf2 {[%emt 0:01:17]} Qg6 {[%emt 0:01:20]} 37. Rc8 {[%emt 0:01:21]} Rxc8 {[%emt 0:01:17]} 38. Qxc8 {[%emt 0:00:02]} Rh4 {[%emt 0:01:21]} 39. Ke2 {[%emt 0:03:44]} Qxe4+ {[%emt 0:00:20]} 0-1

[Event "4NCL Div 1 2018-19"]
[Site "Telford"]
[Date "2019.02.10"]
[Round "6.31"]
[White "Dargan, Paul A G"]
[Black "White, Stuart A"]
[Result "1/2-1/2"]
[ECO "C06"]
[WhiteElo "2207"]
[BlackElo "2113"]
[Annotator "NA"]
[PlyCount "110"]
[EventDate "2018.11.10"]
[EventType "team-tourn"]
[EventCountry "GBR"]
[SourceTitle "playchess.com"]
[Source "ChessBase"]
[SourceQuality "1"]
[TimeControl "40/6000+30:3000+30"]

1. e4 {[%emt 0:04:15]} e6 {[%emt 0:00:00]} 2. d4 {[%emt 0:00:10]} d5 {[%emt 0:00:00]} 3. Nd2 {[%emt 0:00:19]} Nf6 {[%emt 0:00:00]} 4. e5 {[%emt 0:00:16]} Nfd7 {[%emt 0:00:03]} 5. c3 {[%emt 0:00:09]} c5 {[%emt 0:00:20]} 6. Bd3 {[%emt 0:00:17]} b6 {[%emt 0:00:07]} 7. Ne2 {[%emt 0:04:58]} Ba6 {[%emt 0:00:39]} 8. Bxa6 {[%emt 0:03:07]} Nxa6 {[%emt 0:00:06]} 9. O-O {[%emt 0:00:40]} Nc7 {[%emt 0:00:19]} 10. f4 {[%emt 0:01:35]} f5 {[%emt 0:00:37]} 11. exf6 {[%emt 0:07:15]} Nxf6 {[%emt 0:00:13]} 12. f5 {[%emt 0:14:04]} Bd6 {[%emt 0:17:35]} 13. dxc5 {[%emt 0:34:51]} Bxc5+ {[%emt 0:14:52]} 14. Kh1 {[%emt 0:00:17]} e5 {[%emt 0:14:49]} 15. Nb3 {[%emt 0:04:36]} Bd6 {[%emt 0:01:55]} 16. Bg5 {[%emt 0:01:15]} O-O {[%emt 0:04:57]} 17. Ng3 {[%emt 0:01:37]} Qd7 {[%emt 0:08:59]} 18. Qd2 {[%emt 0:07:47]} Qa4 {[%emt 0:06:03]} 19. Nc1 {[%emt 0:12:05]} Ne4 {[%emt 0:15:48]} 20. Nxe4 {[%emt 0:00:03]} Qxe4 {[%emt 0:00:06]} 21. Qf2 {[%emt 0:01:33]} Bc5 {[%emt 0:11:04]} 22. Qf3 {[%emt 0:00:34]} Qxf3 {[%emt 0:02:00]} 23. Rxf3 {[%emt 0:00:05]} e4 {[%emt 0:01:15]} 24. Rf4 {[%emt 0:03:32]} Be3 {[%emt 0:02:44]} 25. Rg4 {[%emt 0:00:01]} Bxc1 {[%emt 0:02:20]} 26. Rxc1 {[%emt 0:00:01]} Rxf5 {[%emt 0:00:07]} 27. Be3 {[%emt 0:00:16]} Ne6 {[%emt 0:01:29]} 28. Rd1 {[%emt 0:00:13]} Nc5 {[%emt 0:01:14]} 29. Bd4 {[%emt 0:03:14]} g6 {[%emt 0:00:07]} 30. c4 {[%emt 0:00:15]} Nd3 {[%emt 0:02:14]} 31. Kg1 {[%emt 0:00:13]} Re8 {[%emt 0:00:32]} 32. cxd5 {[%emt 0:00:39]} Rxd5 {[%emt 0:00:07]} 33. Be3 {[%emt 0:00:29]} Ra5 {[%emt 0:01:05]} 34. a3 {[%emt 0:00:21]} Rae5 {[%emt 0:01:53]} 35. Rd2 {[%emt 0:01:27]} Kf7 {[%emt 0:00:24]} 36. h3 {[%emt 0:00:08]} R5e6 {[%emt 0:00:43]} 37. Re2 {[%emt 0:00:49]} h5 {[%emt 0:00:48]} 38. Rg5 {[%emt 0:03:12]} Re5 {[%emt 0:00:11]} 39. Rg3 {[%emt 0:00:57]} Rd5 {[%emt 0:00:26]} 40. b4 {[%emt 0:01:01]} Re6 {[%emt 0:00:17]} 41. Rc2 {[%emt 0:02:21]} Rd7 {[%emt 0:08:21]} 42. Kf1 {[%emt 0:08:24]} Ne5 {[%emt 0:08:30]} 43. Ke2 {[%emt 0:07:16]} Rc6 {[%emt 0:07:00]} 44. Rxc6 {[%emt 0:05:12]} Nxc6 {[%emt 0:01:15]} 45. Rg5 {[%emt 0:01:10]} Kf6 {[%emt 0:01:29]} 46. Rb5 {[%emt 0:03:57]} Rd3 {[%emt 0:02:31]} 47. a4 {[%emt 0:03:54]} Rb3 {[%emt 0:06:59]} 48. Bxb6 {[%emt 0:00:44]} a6 {[%emt 0:05:15]} 49. Rd5 {[%emt 0:05:21]} Ke6 {[%emt 0:02:54]} 50. Rg5 {[%emt 0:00:43]} Nxb4 {[%emt 0:03:21]} 51. Rxg6+ {[%emt 0:01:29]} Kf5 {[%emt 0:00:08]} 52. Rh6 {[%emt 0:05:30]} Rb2+ {[%emt 0:02:41]} 53. Kf1 {[%emt 0:00:14]} Rb1+ {[%emt 0:02:18]} 54. Ke2 {[%emt 0:00:02]} Rb2+ {[%emt 0:00:05]} 55. Kf1 {[%emt 0:00:55]} Rb1+ {[%emt 0:00:03]} 1/2-1/2

[Event "4NCL Div 1 2018-19"]
[Site "Telford"]
[Date "2019.02.10"]
[Round "6.32"]
[White "Webster, David"]
[Black "Foisor, Mihaela-Veronica"]
[Result "0-1"]
[ECO "C01"]
[WhiteElo "1964"]
[BlackElo "2220"]
[Annotator "NA"]
[PlyCount "110"]
[EventDate "2018.11.10"]
[EventType "team-tourn"]
[EventCountry "GBR"]
[SourceTitle "playchess.com"]
[Source "ChessBase"]
[SourceQuality "1"]
[TimeControl "40/6000+30:3000+30"]

1. e4 {[%emt 0:00:00]} e6 {[%emt 0:02:14]} 2. d4 {[%emt 0:00:00]} d5 {[%emt 0:00:12]} 3. exd5 {[%emt 0:00:00]} exd5 {[%emt 0:00:07]} 4. Bd3 {[%emt 0:00:00]} Bd6 {[%emt 0:01:49]} 5. Ne2 {[%emt 0:00:03]} Ne7 {[%emt 0:00:23]} 6. c3 {[%emt 0:00:37]} c6 {[%emt 0:06:31]} 7. Bf4 {[%emt 0:01:46]} Bg4 {[%emt 0:02:25]} 8. Bxd6 {[%emt 0:01:42]} Qxd6 {[%emt 0:00:41]} 9. Qc2 {[%emt 0:03:39]} Nd7 {[%emt 0:02:05]} 10. f3 Bh5 {[%emt 0:01:12]} 11. Nd2 Bg6 {[%emt 0:04:33]} 12. O-O-O b5 {[%emt 0:14:36]} 13. Ng3 {[%emt 0:10:10]} Nb6 {[%emt 0:00:00]} 14. Nf5 {[%emt 0:26:16]} Nxf5 {[%emt 0:01:56]} 15. Bxf5 {[%emt 0:00:08]} O-O {[%emt 0:04:45]} 16. Bxg6 {[%emt 0:00:43]} hxg6 {[%emt 0:14:15]} 17. g3 {[%emt 0:08:29]} Rfe8 {[%emt 0:00:00]} 18. Rhe1 {[%emt 0:02:59]} Re6 {[%emt 0:01:23]} 19. f4 {[%emt 0:02:33]} Rae8 {[%emt 0:33:00]} 20. Nf3 {[%emt 0:06:12]} Rxe1 {[%emt 0:01:57]} 21. Rxe1 {[%emt 0:00:19]} Rxe1+ {[%emt 0:00:03]} 22. Nxe1 {[%emt 0:00:03]} Qe6 {[%emt 0:00:06]} 23. Qf2 {[%emt 0:06:04]} Qe4 {[%emt 0:03:12]} 24. Nf3 {[%emt 0:08:07]} f6 {[%emt 0:07:52]} 25. Nd2 {[%emt 0:12:12]} Qe7 {[%emt 0:02:22]} 26. Kd1 {[%emt 0:08:28]} Kf7 {[%emt 0:01:18]} 27. b3 {[%emt 0:01:45]} a5 {[%emt 0:00:35]} 28. Qe2 {[%emt 0:01:25]} Qd6 {[%emt 0:01:22]} 29. Ke1 {[%emt 0:01:50]} Qa3 {[%emt 0:00:56]} 30. f5 {[%emt 0:03:28]} gxf5 {[%emt 0:01:05]} 31. Qh5+ {[%emt 0:00:05]} Ke7 {[%emt 0:00:24]} 32. Qh7 {[%emt 0:01:06]} Kf7 {[%emt 0:01:13]} 33. Qh5+ {[%emt 0:00:04]} Ke7 {[%emt 0:00:08]} 34. Qh7 {[%emt 0:00:01]} Nd7 {[%emt 0:01:38]} 35. Qxg7+ {[%emt 0:01:29]} Kd6 {[%emt 0:00:03]} 36. h4 {[%emt 0:02:10]} Qc1+ {[%emt 0:00:31]} 37. Ke2 {[%emt 0:00:05]} Qg1 {[%emt 0:00:54]} 38. Qg6 {[%emt 0:00:45]} Qg2+ {[%emt 0:00:16]} 39. Ke1 {[%emt 0:00:48]} f4 {[%emt 0:00:15]} 40. h5 {[%emt 0:03:55]} f3 {[%emt 0:00:40]} 41. Nxf3 {[%emt 0:00:58]} Qxf3 {[%emt 0:00:52]} 42. Kd2 {[%emt 0:00:46]} Qg2+ {[%emt 0:06:22]} 43. Ke3 {[%emt 0:05:09]} Qb2 {[%emt 0:21:56]} 44. h6 {[%emt 0:03:13]} Qxc3+ {[%emt 0:00:12]} 45. Ke2 {[%emt 0:00:52]} Qxd4 {[%emt 0:01:32]} 46. Qg7 {[%emt 0:04:54]} Qe4+ {[%emt 0:01:15]} 47. Kd2 {[%emt 0:02:21]} Ne5 {[%emt 0:04:02]} 48. h7 {[%emt 0:06:12]} Ng6 {[%emt 0:06:17]} 49. Qxf6+ {[%emt 0:00:52]} Kc5 {[%emt 0:01:40]} 50. h8=Q {[%emt 0:03:31]} Nxh8 {[%emt 0:00:14]} 51. Qxh8 {[%emt 0:00:30]} Qd4+ {[%emt 0:01:29]} 52. Qxd4+ {[%emt 0:00:02]} Kxd4 {[%emt 0:00:06]} 53. Ke2 {[%emt 0:00:43]} Ke4 {[%emt 0:00:10]} 54. a3 {[%emt 0:00:30]} c5 {[%emt 0:01:04]} 55. Kd2 {[%emt 0:00:14]} b4 {[%emt 0:00:33]} 0-1